[Event "Benidorm Open-A 2022"]
[Site "Benidorm"]
[Date "2022.12.10"]
[Round "9.10"]
[White "Ojas Kulkarni"]
[Black "Grabuzova, Tatiana"]
[Result "1-0"]
[ECO "C12"]
[WhiteElo "2233"]
[BlackElo "2229"]
[Annotator "TA"]
[PlyCount "63"]
[EventDate "2022.12.03"]
[EventType "swiss"]
[EventCountry "ESP"]
[SourceTitle "playchess.com"]
[Source "ChessBase"]
[SourceQuality "1"]
[TimeControl "5400+30"]

{[%evp 9,63,14,16,-2,67,66,145,146,173,29,141,103,145,146,285,294,276,243,229,244,234,216,386,388,365,366,504,501,502,509,518,518,518,527,522,493,476,433,425,370,597,587,1755,1642,1747,1743,1460,1452,2052,1889,1318,1318,29981,29980,29979,29977]} 1. d4 e6 2. e4 d5 3. Nc3 Nf6 4. Bg5 Bb4 5. e5 h6 6. Bc1 {C12: French: Classical System: McCutcheon Variation.} Bxc3+ (6... Ne4 $11 7. a3 Bxc3+ 8. bxc3 Nxc3) 7. bxc3 $14 Ne4 (7... Ng8 $14) 8. Qg4 $16 {White is clearly better.} g6 {[#]} 9. Bd3 (9. Ne2 $1 $18) 9... h5 {[#]} (9... Nxc3 $11 {keeps the balance.} 10. Nf3 Nc6) 10. Qf3 $146 ({Predecessor:} 10. Qf4 Nxc3 11. Nf3 Qd7 12. O-O b6 13. Bd2 Na4 14. Ng5 Ba6 15. Qf6 Rg8 16. Nh7 Bxd3 17. cxd3 {1-0 (32) Golubev,M (2461)-Bychkov,V (2303) Chess.com INT 2020}) 10... Bd7 11. Ne2 {[%cal Bg1e2,Be2f4,Bf4e6,Be6d8][%mdl 32]} Bc6 (11... c5 $16 12. O-O h4) 12. Qe3 $18 f5 13. exf6 Qxf6 14. f3 Nd6 15. Nf4 Nf5 $2 (15... Nd7 16. Qxe6+ (16. Nxe6 Kf7 $16) 16... Qxe6+ 17. Nxe6 Kf7) 16. Qxe6+ Qxe6+ 17. Nxe6 Rh7 18. Kf2 Re7 19. Re1 Kf7 20. Bxf5 gxf5 21. Nd8+ Ke8 {[#] Threatens to win with ...Rxe1.} 22. Bg5 Rxe1 23. Rxe1+ ({Less strong is} 23. Kxe1 Kd7 24. Kd2 Na6 25. Nxc6 bxc6 $18) 23... Kd7 24. h4 Na6 $2 (24... Ba4 {is a better defense.} 25. Nxb7 Na6) 25. Re7+ Kc8 26. Nxc6 bxc6 {[%mdl 4096] Endgame KRB-KRN} 27. Re8+ Kb7 28. Rxa8 Kxa8 29. g4 fxg4 30. fxg4 {[%cal Bf3g4,Bg4h5][%mdl 32]} Nb8 31. gxh5 Nd7 32. Be7 {Weighted Error Value: White=0.22 (precise) /Black=0.84} 1-0

[Event "Benidorm Open-A 2022"]
[Site "Benidorm"]
[Date "2022.12.10"]
[Round "9.11"]
[White "Priyanka, Kumari"]
[Black "Kuipers, Eelco"]
[Result "1/2-1/2"]
[ECO "C41"]
[WhiteElo "1910"]
[BlackElo "2311"]
[Annotator "TA"]
[PlyCount "78"]
[EventDate "2022.12.03"]
[EventType "swiss"]
[EventCountry "ESP"]
[SourceTitle "playchess.com"]
[Source "ChessBase"]
[SourceQuality "1"]
[TimeControl "5400+30"]

{[%evp 17,78,49,50,47,66,54,66,29,24,12,30,8,61,65,85,91,85,89,96,92,133,104,104,102,101,96,88,102,98,73,80,70,72,68,66,61,60,53,66,70,79,75,79,79,79,79,79,79,79,79,79,79,112,47,43,0,37,0,29,0,35,0,42]} 1. e4 d6 2. d4 Nf6 3. Nc3 e5 4. Nf3 Nbd7 5. Bc4 Be7 6. O-O O-O 7. Re1 c6 8. a4 Qc7 {8...h6 is the modern continuation.} 9. h3 b6 10. Ba2 {C41: Philidor Defence.} a6 11. Nh4 exd4 12. Qxd4 {White is slightly better.} (12. Nf5 $5 {[%cal Rf5e7]} dxc3 13. Nxe7+ Kh8 14. Nf5 $14 (14. bxc3 Ne5 $14)) 12... Nc5 {[#]} 13. Be3 $146 (13. Qd1 {simplifies} Be6 14. b4 Bxa2 15. Rxa2 Ne6 16. Nf5) ({Predecessor:} 13. Nf3 Be6 14. Bf4 Bxa2 15. Rxa2 Ne6 16. Qd2 Nxf4 17. Qxf4 Rfe8 18. Nd4 Bf8 19. Rea1 b5 20. Rd1 b4 21. Nb1 Qb6 22. Nf5 d5 23. Nd2 dxe4 24. Nxe4 Nxe4 {½-½ (24) Lakos,N (2372)-Moser,E (2328) Germany 2004}) 13... a5 14. Rad1 (14. Nf3 {simplifies} Be6 15. Bxe6 Nxe6 16. Qxb6 Qxb6 17. Bxb6 Rfb8 18. Bd4) 14... Bd7 ({Black should try} 14... Be6 $11) 15. Nf3 {[%cal Bh4f3,Bf3e5,Be5d3][%mdl 32]} Be6 16. e5 dxe5 17. Qxe5 Qxe5 18. Nxe5 Rfc8 19. Bxc5 {White is more active.} Bxc5 20. Bxe6 fxe6 21. Nd3 {Pair of Knights!} Kf7 22. Ne4 Nxe4 23. Rxe4 {Black must now prevent Nxc5.} Bd6 24. Rd4 Ke7 25. Rh4 h6 26. Rg4 Kf6 27. h4 h5 28. Rd4 Ke7 29. Re1 Rf8 30. Rde4 Rf6 31. f4 Kd7 32. g3 Re8 33. Kg2 Rf5 34. c4 b5 35. cxb5 ({White should play} 35. b3 $16) 35... cxb5 $14 36. Rd4 Ke7 (36... bxa4 $5 {[%cal Rf5d5]} 37. Ra1 (37. Rxa4 Rd5 $11) (37. Ne5+ Ke7 $11) 37... Rd5 38. Raxa4 Rxd4 39. Rxd4 Rc8 $11) 37. Rde4 Kd7 38. Rd4 Ke7 39. Rde4 Kd7 {Weighted Error Value: White=0.13 (very precise) /Black=0.11 (very precise)} 1/2-1/2

[Event "Benidorm Open-A 2022"]
[Site "Benidorm"]
[Date "2022.12.10"]
[Round "9.12"]
[White "Ram Aravind L N"]
[Black "Slagboom, Leandro"]
[Result "1/2-1/2"]
[ECO "B53"]
[WhiteElo "2272"]
[BlackElo "2147"]
[Annotator "TA"]
[PlyCount "108"]
[EventDate "2022.12.03"]
[EventType "swiss"]
[EventCountry "ESP"]
[SourceTitle "playchess.com"]
[Source "ChessBase"]
[SourceQuality "1"]
[TimeControl "5400+30"]

{[%evp 15,108,0,0,-47,-28,-62,-61,-52,-42,-54,-55,-46,-55,-81,-37,-29,-16,-34,-22,-81,-92,-94,-97,-95,-91,-81,-84,-90,-106,-82,-92,-84,-62,-81,-79,-75,-55,-105,-102,-96,-93,-105,-59,-34,-10,-22,0,0,0,0,0,0,0,0,7,0,23,16,110,0,0,-14,0,0,0,0,0,0,0,0,0,0,0,0,0,0,0,0,0,0,0,0,0,0,0,0,0,0,0,0,0,0,0,0,0]} 1. e4 c5 2. Nf3 d6 3. d4 cxd4 4. Qxd4 Nc6 5. Bb5 Bd7 6. Bxc6 Bxc6 7. c4 Nf6 {[%cal Bg8f6,Bf6h5,Bh5f4][%mdl 32]} 8. Nc3 g6 9. b3 {B53: Sicilian: 2...d6: Lines with Qxd4.} (9. O-O $11 {is superior.}) 9... Bg7 $15 {Strongly threatening ...0-0.} 10. Bb2 O-O {[%cal Of6e4]} 11. Nd5 {Black is slightly better.} Nh5 12. Qd2 Bxb2 13. Qxb2 e6 $1 14. Nc3 Qf6 15. O-O-O {[#]} Nf4 $146 ({Predecessor:} 15... Qf4+ 16. Qd2 Qg4 17. h3 Qf4 18. Qxf4 Nxf4 19. g3 Nh5 20. Rxd6 Nf6 21. Re1 Rfd8 22. Rxd8+ Rxd8 {1-0 (48) Dulman,E (2114)-Lien,K (1948) Oslo 2011}) 16. Ne1 $1 Rfd8 17. Kb1 (17. Rd2 $11) 17... d5 $1 $36 {[%mdl 2048] Keeping White busy.} 18. cxd5 exd5 19. Nxd5 Nxd5 20. exd5 Qf5+ 21. Nc2 Rxd5 22. Rxd5 Bxd5 23. f3 Rc8 24. Rc1 Be6 25. Qd4 Qa5 26. Kb2 ({Better is} 26. g4 $1 $15) 26... Rd8 27. Qc3 Qg5 28. Ne3 {[%cal Bc2e3,Be3d5,Bd5f4][%mdl 32] [#]} Qf4 (28... b5 $1 $17 {[%cal Ob5b4] White must now prevent ...b4!} 29. Kb1 Re8) 29. h3 $15 b6 30. Rc2 (30. Ng4 {simplifies} Bxg4 31. hxg4 b5 32. Kb1) 30... Rc8 (30... h5 {simplifies} 31. Rd2 Rxd2+ 32. Qxd2 Qe5+) 31. Nd5 Rxc3 32. Nxf4 Rxc2+ 33. Kxc2 $11 {[%mdl 4096] Endgame Threatens to win with Nxe6. KB-KN} Bd7 34. Kc3 Bc6 35. Kc4 Kf8 36. Nd5 Ke8 {[#]} (36... g5 $11) 37. Ne3 (37. Kd4 $1 $16) 37... Ke7 {The position is equal.} 38. Kd4 Ke6 39. f4 h5 40. h4 f6 41. g3 Be8 42. b4 Bf7 43. a3 Kd6 44. f5 g5 45. Nd1 Bb3 46. Ne3 Bf7 47. Nf1 Bb3 48. Nd2 Bd5 49. b5 g4 50. a4 Bf7 51. Ne4+ Ke7 52. Nd2 Kd6 53. Ne4+ Ke7 54. Nd2 Kd6 {Weighted Error Value: White=0.12 (very precise) /Black=0.09 (flawless)} 1/2-1/2

[Event "Benidorm Open-A 2022"]
[Site "Benidorm"]
[Date "2022.12.10"]
[Round "9.13"]
[White "Gugan G"]
[Black "Ibanez Aullana, Ramon"]
[Result "1/2-1/2"]
[ECO "B02"]
[WhiteElo "2126"]
[BlackElo "2270"]
[Annotator "TA"]
[PlyCount "76"]
[EventDate "2022.12.03"]
[EventType "swiss"]
[EventCountry "ESP"]
[SourceTitle "playchess.com"]
[Source "ChessBase"]
[SourceQuality "1"]
[TimeControl "5400+30"]

{[%evp 9,76,53,81,58,88,31,20,0,-1,-5,16,0,2,4,11,11,0,4,4,11,6,7,24,20,26,14,12,0,0,-2,5,0,12,-15,-9,-12,-6,-3,0,-16,-20,-17,0,0,3,2,8,4,15,11,22,0,47,-1,0,-25,0,-11,0,0,8,4,6,0,108,64,237,53,97]} 1. e4 Nf6 2. e5 Ng8 3. d4 d6 4. Nf3 dxe5 5. Nxe5 Nd7 6. Qf3 {[%csl Ge5][%cal Rf3f7] [#] B02: Alekhine's Defence: Chase Variation and lines with early Nc3.} Ngf6 {[#]} 7. Nxd7 $146 {White is much more active. The black rooks are badly placed.} (7. Nc3 $16) ({Predecessor:} 7. Nc3 e6 8. Bg5 Be7 9. O-O-O Nxe5 10. dxe5 Nd7 11. Bf4 Bg5 12. Ne4 Bxf4+ 13. Qxf4 {½-½ (65) Malik,J (2291)-Hausner,I (2382) Czech Republic 2020}) 7... Qxd7 $14 8. Nc3 {The position is equal.} c6 9. Be3 Qg4 10. Be2 Qxf3 11. Bxf3 Bg4 12. Bxg4 Nxg4 13. Bf4 O-O-O 14. h3 Nf6 ({Resist} 14... Rxd4 15. Ne2 Rxf4 16. Nxf4 $16) 15. O-O-O Nd5 16. Nxd5 cxd5 17. Rhe1 e6 18. c3 Kd7 19. Kc2 Rc8 20. Kd3 Rc6 21. Be5 f6 22. Bf4 g5 23. Bd2 Be7 24. f4 gxf4 25. Bxf4 Rg8 26. g4 Rg6 27. Re3 Bd6 28. Bxd6 Rxd6 $11 {[%mdl 4096] Endgame KRR-KRR} 29. Rf1 Ke7 30. Rf2 Kf7 (30... h5 $11 {feels stronger.}) 31. b3 (31. Ref3 $14) 31... b5 32. Rff3 Ke7 33. c4 dxc4+ (33... bxc4+ {simplifies} 34. bxc4 dxc4+ 35. Kxc4 Rc6+) 34. bxc4 e5 35. cxb5 {next Re4 is good for White.} Rxd4+ 36. Kc2 Rh6 (36... h5 $11 {keeps the balance.}) 37. Rc3 Kd6 $2 {[#]} (37... e4 $14 38. Rf2 Rd3) 38. Kb3 $2 (38. g5 $18 Rhh4 39. gxf6 (39. Rxf6+ Kd5 $16)) 38... e4 {Weighted Error Value: White=0.19 (very precise) /Black=0.25 (precise)} 1/2-1/2

[Event "Benidorm Open-A 2022"]
[Site "Benidorm"]
[Date "2022.12.10"]
[Round "9.14"]
[White "Arjun C Krishnamachari"]
[Black "Rodriguez Melendez, Juan Humbert"]
[Result "1/2-1/2"]
[ECO "B22"]
[WhiteElo "2241"]
[BlackElo "2157"]
[Annotator "TA"]
[PlyCount "153"]
[EventDate "2022.12.03"]
[EventType "swiss"]
[EventCountry "ESP"]
[SourceTitle "playchess.com"]
[Source "ChessBase"]
[SourceQuality "1"]
[TimeControl "5400+30"]

{[%evp 13,153,6,0,4,9,15,27,22,25,38,33,-33,0,0,0,8,6,0,0,-5,0,0,40,4,0,4,8,7,14,-3,15,15,29,0,0,0,2,0,11,6,320,0,0,0,0,0,0,0,0,0,0,0,0,0,0,0,0,0,0,0,0,0,0,0,0,0,0,0,0,0,0,-5,0,0,0,0,0,0,0,0,0,0,0,0,0,0,0,0,0,0,0,-36,-8,-436,-393,-412,-397,-871,-753,-540,20,25,20,0,8,0,0,0,0,0,0,0,0,0,0,0,0,0,0,0,0,0,0,0,0,0,0,0,0,0,0,0,0,0,0,0,0,0,0,0,0,0]} 1. e4 c5 2. c3 Nf6 3. e5 Nd5 4. d4 cxd4 5. Nf3 e6 6. cxd4 d6 7. Bc4 Be7 8. O-O {B22: Sicilian: 2 c3.} O-O 9. Qe2 Bd7 10. Nc3 {White has an edge.} Nxc3 11. bxc3 Bc6 12. Rd1 (12. exd6 $14 Bxd6 13. Ne5) 12... Nd7 {[#]} 13. d5 $146 ({Predecessor:} 13. exd6 Bxd6 14. Bd3 h6 15. c4 Re8 16. Bc2 Qf6 17. Be4 Rac8 18. Bxc6 Rxc6 19. Bb2 {1-0 (40) Tregubov,P (2541)-Rustemov,A (2525) Chess.com INT 2022}) 13... exd5 14. Bxd5 Bxd5 15. Rxd5 Nb6 16. Rd1 Qc7 17. Bf4 {[%cal Re5d6]} Nc4 18. exd6 (18. Rd4 {is interesting.} Nxe5 19. Nxe5 Qxc3 20. Rdd1) 18... Bxd6 19. Rd4 Bxf4 20. Rxc4 Qb8 21. Rb1 Re8 {Prevents Qe4.} 22. Re4 {Black must now prevent g3.} b6 23. g3 Bd6 24. Rd1 {[%cal Od1d6] Strongly threatening Rxd6!} Rd8 25. Red4 Qc7 26. Qe4 Bc5 $2 {[%mdl 8192] [#]} (26... Re8 $11 {and Black stays safe.} 27. Qd3 Be7) 27. Rd5 $2 (27. Ng5 $1 $18 g6 28. Ne6 $1 {[%mdl 512]} fxe6 29. Qxe6+ Kg7 30. Rd7+ Rxd7 31. Rxd7+ Qxd7 32. Qxd7+ Kh8 33. Kg2) 27... Rxd5 28. Rxd5 (28. Qxd5 {simplifies} Re8 29. Qd7 Qxd7 30. Rxd7 a5 31. Kf1) 28... Rf8 29. Ng5 {[%csl Gg5][%cal Re4h7]} g6 30. Qh4 {[%csl Gg5][%cal Rh4h7]} h5 31. Qe4 Qe7 32. Kg2 Re8 33. Qf3 Kg7 34. h4 Qf6 35. Ne4 (35. a4 {feels hotter.} Re7 36. a5 Qxf3+ 37. Kxf3 Rc7 38. Ne4) 35... Qxf3+ 36. Kxf3 $11 {[%mdl 4096] Endgame KRB-KRN} Ba3 37. c4 Re7 38. Rd3 Bb2 39. Rd8 Be5 40. Rd5 Bb2 41. c5 bxc5 42. Rxc5 Bd4 43. Rd5 Bb6 44. a4 a6 45. Rd6 Re6 46. Rxe6 fxe6 {KB-KN} 47. Ke2 Kf8 48. Kd3 Ke7 49. f3 Kd7 50. g4 Kc6 51. Kc4 Bd8 52. g5 Bb6 {Inhibits Nc5.} 53. Kb4 $2 {[%mdl 8192] [#]} (53. Ng3 $11) 53... Kd5 $1 $19 54. Nf6+ {[#]} Kd4 $1 55. f4 $2 (55. Ne4) 55... Bc7 56. Nxh5 Ke4 $2 ({Stronger than} 56... gxh5 57. g6 Bd6+ 58. Ka5 $11) ({Better is} 56... e5 $19 57. Nf6 (57. fxe5 $2 gxh5 58. g6 Bxe5 $19) 57... exf4) 57. Ng7 $11 {And now h5 would win.} Bxf4 58. Nxe6 {The position is equal.} (58. Ka5 $5 Be5 $8 59. Nxe6 $11) 58... Bd2+ 59. Kc5 Kf5 60. Nd4+ Kg4 61. Kc6 Be3 62. Ne6 Kxh4 63. Kb7 a5 64. Ka6 Bd2 65. Kb5 Kg4 66. Nd4 Be1 (66... Kxg5 $2 67. Nf3+ Kf4 68. Nxd2 $18) 67. Nb3 Kxg5 {...Kf4 is the strong threat.} 68. Nxa5 Kf5 69. Nc4 g5 {[%cal Bg6g5,Bg5g4][%mdl 32]} 70. a5 {aiming for a6.} Bxa5 71. Kxa5 {KN-KP} Kf4 72. Nb2 $1 g4 {( -> ...Ke4)} 73. Nd3+ Ke3 74. Ne1 g3 75. Ng2+ Kf2 76. Nh4 g2 77. Nxg2 $1 {Weighted Error Value: White=0.34/Black=0.25 (precise)} 1/2-1/2

[Event "Benidorm Open-A 2022"]
[Site "Benidorm"]
[Date "2022.12.10"]
[Round "9.15"]
[White "Panjer, Sidney"]
[Black "Ilinca Ilinca, Felix Antonio"]
[Result "0-1"]
[ECO "A35"]
[WhiteElo "2115"]
[BlackElo "2233"]
[Annotator "TA"]
[PlyCount "88"]
[EventDate "2022.12.03"]
[EventType "swiss"]
[EventCountry "ESP"]
[SourceTitle "playchess.com"]
[Source "ChessBase"]
[SourceQuality "1"]
[TimeControl "5400+30"]

{[%evp 11,88,0,0,-7,0,0,-6,0,0,0,-5,-4,0,-13,-15,-68,-25,-19,-12,-25,0,-4,7,0,0,0,0,0,18,-16,-16,-16,-16,-16,-16,-16,-16,-37,-37,-37,-37,-37,-26,-74,-74,-66,-62,-79,-79,-204,-80,-302,-302,-371,-382,-6306,-473,-6053,-470,-456,-411,-451,-445,-408,-393,-377,-218,-12478,-9886,-781,-442,-7585,-8064,-29982,-29983,-29983,-29982,-29981,-29982]} 1. Nf3 c5 2. c4 Nc6 3. Nc3 Nf6 4. g3 e6 5. Bg2 d5 6. d4 dxc4 {[%cal Rc5d4]} 7. Qa4 {A34: Symmetrical English: 2 Nc3, lines with ...d5.} cxd4 8. Nxd4 {[%mdl 64] [#]} Qxd4 9. Bxc6+ {The position is equal.} Bd7 $1 10. Bxd7+ Qxd7 11. Qxc4 Rc8 12. Qf4 {[#]} Bd6 $146 ({Predecessor:} 12... Be7 13. Be3 a6 14. O-O O-O 15. Rfd1 Qc6 16. Rac1 Rfd8 17. Bd4 h6 18. h3 Nd5 {½-½ (30) Bente,B (2296)-Atri,J (2009) Hamburg 2015}) 13. Qf3 ({White should try} 13. Qd4 $11) 13... Bb4 14. Bd2 $1 O-O (14... Qc6 {simplifies} 15. Qxc6+ Rxc6 16. f3 Ke7) 15. Rd1 $1 Rfd8 {Strongly threatening ...Bxc3.} (15... Qc6 {simplifies} 16. Qxc6 Rxc6 17. O-O Rfc8) 16. O-O Bxc3 17. Bxc3 Qxd1 18. Rxd1 Rxd1+ 19. Kg2 Nd5 20. e3 Nxc3 21. Qxb7 {[#]} Rdd8 22. bxc3 Rxc3 23. Qxa7 $11 {[%mdl 4096] Endgame KQ-KRR} Rcc8 24. a4 Ra8 25. Qc7 Rd5 26. h4 h5 (26... Rxa4 $2 {is a self mate.} 27. Qc8+) 27. Qf4 (27. Qc4 $11) 27... Rda5 $17 {Black is more active.} 28. Qf3 g6 (28... Rxa4 29. Qxh5 Rb8 30. Qe5 $11) 29. Qf6 {[%cal Og3g4] White is on the road to losing.} Rxa4 30. Kg1 (30. Qc3 $17) 30... R8a5 (30... Rc4 $19 {Threatens to win with ...Ra2.} 31. Qb2 Rac8) 31. e4 $2 (31. Kg2 $17) 31... Rc5 $19 ({Much less strong is} 31... Rxe4 32. Qd8+ Kh7 33. Qxa5 $18) 32. Qf4 e5 33. Qf3 (33. Qd2 Rxe4 34. Kg2) 33... Rcc4 (33... Ra1+ $142 34. Kg2 Rc2) 34. Kg2 (34. Qb3 $142 Rxe4 35. Kg2) 34... Rxe4 (34... Rc2 $142 35. g4 hxg4 36. Qxg4 Raa2) 35. Qb3 Rad4 36. Kf3 Re1 {Against Qb1. ...Rd2 is the strong threat.} 37. Qc3 {Against Rd2} Red1 38. Qc8+ Kg7 {aiming for ...R1d3+.} 39. Qe8 $2 (39. Qc7) 39... Re1 40. Qb5 Rd6 {Hoping for ...Rd2.} 41. Kg2 (41. Qb2 $142) 41... Rd2 {( -> ...Ree2)} 42. Kf3 {Against Ree2} e4+ {[%cal Be5e4,Be4e3][%mdl 32] Black mates.} 43. Kg2 e3 44. Qe5+ Kh7 {Weighted Error Value: White=1.01/Black=0.48} 0-1

[Event "Benidorm Open-A 2022"]
[Site "Benidorm"]
[Date "2022.12.10"]
[Round "9.16"]
[White "Lohia, Sohum"]
[Black "Fernandez Garcia, Gumersindo"]
[Result "0-1"]
[ECO "C41"]
[WhiteElo "2136"]
[BlackElo "2172"]
[Annotator "TA"]
[PlyCount "75"]
[EventDate "2022.12.03"]
[EventType "swiss"]
[EventCountry "ESP"]
[SourceTitle "playchess.com"]
[Source "ChessBase"]
[SourceQuality "1"]
[TimeControl "5400+30"]

{[%evp 20,75,39,27,43,17,14,19,24,22,22,24,36,38,50,41,39,39,50,28,32,32,31,26,37,14,22,0,0,-33,30,-47,14,0,0,-77,0,-609,-468,-1057,-1067,-1108,-1091,-1232,-1204,-29973,-955,-1194,-1147,-2164,-2089,-1662,-1400,-29988,-29989,-29989,-5443,-2216]} 1. e4 d6 2. d4 Nf6 3. Nc3 e5 4. Nf3 Nbd7 5. Bc4 Be7 6. O-O O-O 7. h3 c6 8. a4 h6 9. Re1 Re8 10. Be3 Qc7 11. Bb3 Bf8 {C41: Philidor Defence.} 12. Qd2 exd4 13. Bxd4 Ne5 {The position is equal.} 14. Qf4 {[#]} (14. Nh2 {simplifies} Be6 15. Bxe6 Rxe6 16. f4) 14... c5 $146 ({Predecessor:} 14... Be6 15. Nxe5 Bxb3 16. Nxc6 bxc6 17. cxb3 Nd7 18. b4 Ne5 19. Qd2 Rab8 20. b5 Nc4 {1-0 (44) Chitlange,S (2167)-Petrova,I (2110) Chess.com INT 2021}) 15. Nb5 Qb8 16. Bxe5 $1 dxe5 17. Qe3 Bd7 18. Nc3 Qc8 19. Nd5 c4 {Hoping for ...Nxd5.} 20. Nxf6+ gxf6 21. Ba2 Be6 22. c3 Kh7 23. Nh4 {[%cal Oh4f5]} (23. Qe2 $5 {[%cal Rf3d2]}) 23... Bc5 24. Qf3 Rg8 ({Black should play} 24... Qd7 $15) 25. Nf5 (25. Rad1 $11) 25... Rg5 (25... Qd7 $15) 26. Bb1 Qc6 $36 {[%mdl 2048] Black has good play.} 27. Kf1 (27. h4 $11 Rg6 28. Kf1) 27... Rd8 {Black is more active.} (27... Rag8 $17 28. Nh4 Qb6) 28. Ke2 $2 {[%mdl 8192]} (28. h4 $11 Rg6 29. Bc2) 28... Qb6 29. b4 (29. Kf1 $142 Bxf5 30. a5) 29... cxb3 $19 {[%cal Bc4b3,Bb3b2][%mdl 32]} 30. Bd3 b2 31. Rad1 Qb3 {[%cal Og5f5] Strongly threatening ...Rxf5!} 32. h4 {[#]} Rg6 (32... Rxf5 $142 $1 {[%mdl 512]} 33. exf5 Bc4 34. Qh5 Bxd3+ 35. Kf3 Qd5+ 36. Kg3 Rg8+ 37. Qg6+ fxg6 38. f3 Qa2 $1 39. Kh3 gxf5 40. g4 b1=Q 41. Rxb1 Bxb1 42. h5 fxg4+ 43. fxg4 Rxg4 $3 {[%mdl 512]} 44. Rg1 Rxg1 45. c4 Qg2+ 46. Kh4 Qh2#) 33. h5 Rg5 {[%cal Od8d3] And now ...Rxd3! would win.} 34. Ne3 Bxe3 35. Qxe3 Qxc3 {...Qb3 is the strong threat.} 36. Bb5 Qc2+ 37. Rd2 Rxd2+ (37... Bg4+ $142 38. Kf1 Rxd2 39. Bc4 b1=Q 40. Kg1 {[#]} Qxe1+ $3 {[%mdl 512]} 41. Qxe1 Rd1 42. g3 Rxe1+ 43. Bf1 Rxh5 44. a5 Bf3 45. g4 Rh1#) 38. Qxd2 {Weighted Error Value: White=1.42/Black=0.59} 0-1

[Event "Benidorm Open-A 2022"]
[Site "Benidorm"]
[Date "2022.12.10"]
[Round "9.17"]
[White "Nurgaliyev, Sauat"]
[Black "Garcia Callejo, Jesus"]
[Result "1-0"]
[ECO "B12"]
[WhiteElo "2113"]
[BlackElo "2140"]
[Annotator "TA"]
[PlyCount "105"]
[EventDate "2022.12.03"]
[EventType "swiss"]
[EventCountry "ESP"]
[SourceTitle "playchess.com"]
[Source "ChessBase"]
[SourceQuality "1"]
[TimeControl "5400+30"]

{[%evp 11,105,12,12,0,151,151,152,118,124,89,131,121,136,129,201,214,202,207,206,210,243,193,211,177,188,183,288,287,292,281,279,260,241,247,238,242,232,188,190,160,165,161,189,190,202,202,244,219,224,208,210,182,304,304,266,193,208,184,252,256,287,224,264,229,509,501,441,399,756,756,768,702,671,603,649,692,678,648,627,599,1350,1231,29968,29964,29966,29966,29972,29970,29942,9334,29986,29987,29987,29988,29987,29988]} 1. e4 c6 2. d4 d5 3. e5 c5 4. dxc5 Nc6 5. Nf3 Bg4 6. Bb5 Qa5+ 7. Nc3 {B12: Caro-Kann: Advance Variation.} O-O-O $2 (7... e6 $11) 8. Bxc6 $16 bxc6 {[#]} 9. a3 $146 {Against d4. White is clearly better.} ({Predecessor:} 9. O-O e6 10. Bg5 f6 11. exf6 gxf6 12. Qd4 Bxf3 13. b4 Qc7 14. gxf3 fxg5 15. Qxh8 {0-1 (30) Marholev,D (2268)-Drazic,S (2438) Novi Sad 2015}) 9... Qxc5 10. Be3 {Against d4} d4 11. Bxd4 Qc4 {[#] White must now prevent ...c5.} 12. b3 $36 {[%cal Bb2b3,Bb3c4,Bc4c5,Bc5d6][%mdl 2080] Against c5. Black is under strong pressure.} Bxf3 (12... Qa6 $16) 13. bxc4 $18 Bxd1 14. Rxd1 e6 15. Ne4 {Inhibits c5.} Nh6 16. c5 (16. Bxa7 $6 Rxd1+ 17. Kxd1 Be7) 16... Nf5 17. c3 h5 18. Ke2 Be7 (18... f6 {might work better.} 19. f4 (19. exf6 Nxd4+ 20. cxd4 gxf6 $16) 19... Nxd4+ 20. Rxd4 (20. cxd4 Kc7 $16) 20... Rxd4 21. cxd4 Kc7) 19. Nd6+ Bxd6 20. cxd6 Kd7 21. Rb1 ({But not} 21. Bxa7 $6 Ra8 $16) 21... Rb8 {Prevents Rb7+.} 22. Bxa7 Rb5 23. Rxb5 cxb5 {[%mdl 4096] Endgame KRB-KRN} 24. Bc5 f6 25. exf6 gxf6 26. Rd1 Rg8 27. g3 {[%cal Bg2g3,Bg3g4][%mdl 32]} Rc8 28. Bb4 Rc4 29. f3 Rc8 30. Rd3 Rg8 31. Kd2 h4 (31... Rf8 $142 32. Kc2 Rg8) 32. g4 Nh6 33. h3 {[%cal Oc3c4]} Nf7 34. f4 {Prevents Ne5.} Rc8 (34... Nd8 $142 35. Kc2 Nf7) 35. Ke3 Rc4 36. Rd4 {[#] aiming for Rxc4.} Rc8 37. g5 f5 (37... e5 38. fxe5 fxg5) 38. Rd1 Nh8 39. g6 Nxg6 $2 (39... Rg8 40. Kd4 Nxg6) 40. Rg1 Rg8 41. Kd4 Kc6 42. Bc5 Rg7 43. c4 bxc4 44. Kxc4 e5 45. Rb1 {Threatening mate with Rb6+.} Rb7 {Prevents Rb6+.} 46. d7 Rxd7 47. Rb6+ Kc7 48. Rxg6 exf4 49. Rf6 Rg7 50. Kd5 (50. a4 $142 Rg3 51. a5 Rg8 52. Rxf5 Ra8 53. Rf7+ Kc6 54. Rf6+ Kc7 55. a6) 50... Rg3 51. Rf7+ {White mates.} Kd8 52. Kc6 {[%cal Rf7f8]} Rg6+ 53. Bd6 {Weighted Error Value: White=0.16 (very precise) /Black=0.51} 1-0